fUST/lending_fUST_20250929
["ID","MTS","AMOUNT","RATE_DAILY","PERIOD"]
[388357660,1759119038297,-194.29170262,0.00027297,2]
[388357661,1759119038307,-194.29170261,0.00027323,2]
[388357662,1759119038317,-194.29170261,0.00027349,2]
[388357663,1759119038327,-194.29170261,0.00027374,2]
[388357664,1759119038336,-500.0,0.00027383,2]
[388357665,1759119038346,-500.0,0.00027383,2]
[388357666,1759119038355,-500.0,0.00027383,2]
[388357667,1759119038365,-500.0,0.00027383,2]
[388357668,1759119038375,-500.0,0.00027383,2]
[388357669,1759119038385,-500.0,0.00027383,2]
[388357670,1759119038395,-500.0,0.00027383,2]
[388357671,1759119038404,-500.0,0.00027383,2]
[388357672,1759119038414,-395.0,0.00027383,2]
[388357673,1759119038423,-500.0,0.00027383,2]
[388357674,1759119038433,-805.21,0.00027387,3]
[388357675,1759119038443,-202.863,0.00027395,16]
[388357676,1759119038453,-500.0,0.00027396,2]
[388357677,1759119038463,-194.23743218,0.00027396,2]
[388357678,1759119038472,-178.52536505,0.00027396,2]
[388357679,1759119038482,-500.0,0.00027396,2]
[388357680,1759119038491,-500.0,0.00027396,2]
[388357681,1759119038500,-500.0,0.00027396,2]
[388357682,1759119038510,-500.0,0.00027396,2]
[388357683,1759119038519,-500.0,0.00027396,2]
[388357684,1759119038528,-500.0,0.00027396,2]
[388357685,1759119038537,-500.0,0.00027396,2]
[388357686,1759119038546,-500.0,0.00027396,2]
[388357687,1759119038556,-500.0,0.00027396,2]
[388357688,1759119038565,-480.0,0.00027397,7]
[388357689,1759119038575,-480.0,0.00027397,7]
[388357690,1759119038588,-480.0,0.00027397,7]
[388357691,1759119038598,-746.98,0.00027397,7]
[388357692,1759119038607,-480.0,0.00027397,7]
[388357693,1759119038617,-480.0,0.00027397,7]
[388357694,1759119038626,-480.0,0.00027397,7]
[388357695,1759119038636,-480.0,0.00027397,7]
[388357696,1759119038645,-482.05150474,0.00027397,7]
[388357697,1759119038655,-218.61128393,0.00027397,7]
[388357698,1759119038665,-480.0,0.00027397,7]
[388357699,1759119038675,-480.0,0.00027397,7]
[388357700,1759119038684,-480.0,0.00027397,7]
[388357701,1759119038694,-535.44,0.00027397,7]
[388357702,1759119038703,-489.11,0.00027397,7]
[388357703,1759119038712,-480.0,0.00027397,7]
[388357704,1759119038722,-480.0,0.00027397,7]
[388357705,1759119038732,-480.0,0.00027397,7]
[388357706,1759119038742,-801.71,0.00027397,7]
[388357707,1759119038752,-608.59,0.00027397,7]
[388357708,1759119038761,-480.0,0.00027397,7]
[388357709,1759119038770,-917.84,0.00027397,7]
[388357710,1759119038779,-480.0,0.00027397,7]
[388357711,1759119038789,-644.02,0.00027397,7]
[388357712,1759119038798,-480.0,0.00027397,7]
[388357713,1759119038808,-480.0,0.00027397,7]
[388357714,1759119038817,-748.03,0.00027397,7]
[388357715,1759119038828,-482.32956335,0.00027397,7]
[388357716,1759119038838,-485.50318601,0.00027397,7]
[388357717,1759119038847,-480.0,0.00027397,7]
[388357718,1759119038857,-480.0,0.00027397,7]
[388357719,1759119038867,-480.0,0.00027397,7]
[388357720,1759119038876,-238.36401353,0.00027397,7]
[388357721,1759119038885,-480.0,0.00027397,7]
[388357722,1759119038895,-232.1267,0.00027397,7]
[388357723,1759119038905,-820.18,0.00027397,7]
[388357724,1759119038915,-480.0,0.00027397,7]
[388357725,1759119038924,-533.93,0.00027397,7]
[388357726,1759119038934,-480.0,0.00027397,7]
[388357727,1759119038944,-546.18,0.00027397,7]
[388357728,1759119038954,-219.36670114,0.00027397,7]
[388357729,1759119038963,-480.0,0.00027397,7]
[388357730,1759119038973,-700.94,0.00027397,7]
[388357731,1759119038983,-480.0,0.00027397,7]
[388357732,1759119038992,-480.0,0.00027397,7]
[388357733,1759119039002,-480.0,0.00027397,7]
[388357734,1759119039011,-480.0,0.00027397,7]
[388357735,1759119039021,-480.0,0.00027397,7]
[388357736,1759119039030,-480.0,0.00027397,7]
[388357737,1759119039040,-487.81049592,0.00027397,7]
[388357738,1759119039050,-480.0,0.00027397,7]
[388357739,1759119039059,-480.0,0.00027397,7]
[388357740,1759119039069,-480.0,0.00027397,7]
[388357741,1759119039079,-457.69278814,0.00027397,7]
[388357742,1759119039089,-480.0,0.00027397,7]
[388357743,1759119039099,-480.0,0.00027397,7]
[388357744,1759119039108,-480.0,0.00027397,7]
[388357745,1759119039118,-480.0,0.00027397,7]
[388357746,1759119039127,-480.0,0.00027397,7]
[388357747,1759119039137,-480.0,0.00027397,7]
[388357748,1759119039146,-480.0,0.00027397,7]
[388357749,1759119039157,-638.73,0.00027397,7]
[388357750,1759119039167,-480.0,0.00027397,7]
[388357751,1759119039177,-582.17,0.00027397,7]
[388357752,1759119039187,-480.0,0.00027397,7]
[388357753,1759119039196,-480.0,0.00027397,7]
[388357754,1759119039206,-682.74,0.00027397,7]
[388357755,1759119039216,-480.0,0.00027397,7]
[388357756,1759119039226,-615.63,0.00027397,7]
[388357757,1759119039236,-480.0,0.00027397,7]
[388357758,1759119039246,-480.0,0.00027397,7]
[388357759,1759119039256,-753.16,0.00027397,7]
[388357760,1759119039266,-480.0,0.00027397,7]
[388357761,1759119039275,-480.0,0.00027397,7]
[388357762,1759119039284,-481.85,0.00027397,7]
[388357763,1759119039294,-768.05,0.00027397,7]
[388357764,1759119039303,-480.0,0.00027397,7]
[388357765,1759119039312,-480.0,0.00027397,7]
[388357766,1759119039321,-480.0,0.00027397,7]
[388357767,1759119039331,-974.93,0.00027397,7]
[388357768,1759119039340,-480.0,0.00027397,7]
[388357769,1759119039349,-480.0,0.00027397,7]
[388357770,1759119039359,-945.71,0.00027397,7]
[388357771,1759119039368,-480.0,0.00027397,7]
[388357772,1759119039378,-480.0,0.00027397,7]
[388357773,1759119039388,-593.19,0.00027397,7]
[388357774,1759119039397,-480.0,0.00027397,7]
[388357775,1759119039406,-261.74564355,0.00027397,7]
[388357776,1759119039415,-2217.15,0.00027397,7]
[388357777,1759119039424,-480.0,0.00027397,7]
[388357778,1759119039434,-480.0,0.00027397,7]
[388357779,1759119039444,-761.99,0.00027397,7]
[388357780,1759119039454,-480.0,0.00027397,7]
[388357781,1759119039463,-1305.59,0.00027397,7]
[388357782,1759119039473,-480.0,0.00027397,7]
[388357783,1759119039482,-480.0,0.00027397,7]
[388357784,1759119039491,-480.0,0.00027397,7]
[388357785,1759119039500,-2045.72,0.00027397,7]
[388357786,1759119039509,-480.0,0.00027397,7]
[388357787,1759119039518,-428.34831099,0.00027397,7]
[388357788,1759119039527,-480.0,0.00027397,7]
[388357789,1759119039536,-480.0,0.00027397,7]
[388357790,1759119039546,-480.0,0.00027397,7]
[388357791,1759119039555,-480.0,0.00027397,7]
[388357792,1759119039564,-661.53,0.00027397,7]
[388357793,1759119039573,-580.69,0.00027397,7]
[388357794,1759119039585,-480.0,0.00027397,7]
[388357795,1759119039597,-617.63068873,0.00027397,7]
[388357796,1759119039606,-688.12,0.00027397,7]
[388357797,1759119039615,-547.75,0.00027397,7]
[388357798,1759119039624,-482.29,0.00027397,7]
[388357799,1759119039634,-480.0,0.00027397,7]
[388357800,1759119039643,-764.62,0.00027397,7]
[388357801,1759119039652,-480.0,0.00027397,7]
[388357802,1759119039662,-753.52,0.00027397,7]
[388357803,1759119039671,-830.55,0.00027397,7]
[388357804,1759119039681,-480.0,0.00027397,7]
[388357805,1759119039691,-480.0,0.00027397,7]
[388357806,1759119039700,-665.19,0.00027397,7]
[388357807,1759119039709,-712.62,0.00027397,7]
[388357808,1759119039719,-502.97744147,0.00027397,7]
[388357809,1759119039728,-480.0,0.00027397,7]
[388357810,1759119039737,-511.55,0.00027397,7]
[388357811,1759119039746,-649.91,0.00027397,7]
[388357812,1759119039755,-480.0,0.00027397,7]
[388357813,1759119039765,-570.01,0.00027397,7]
[388357814,1759119039774,-480.0,0.00027397,7]
[388357815,1759119039783,-778.41,0.00027397,7]
[388357816,1759119039792,-480.0,0.00027397,7]
[388357817,1759119039996,-480.0,0.00027397,7]
[388357818,1759119040005,-632.48,0.00027397,7]
[388357819,1759119040014,-480.0,0.00027397,7]
[388357820,1759119040023,-480.0,0.00027397,7]
[388357821,1759119040033,-908.59,0.00027397,7]
[388357822,1759119040042,-480.0,0.00027397,7]
[388357823,1759119040051,-626.05,0.00027397,7]
[388357824,1759119040061,-480.0,0.00027397,7]
[388357825,1759119040070,-639.25,0.00027397,7]
[388357826,1759119040079,-480.0,0.00027397,7]
[388357827,1759119040088,-743.16,0.00027397,7]
[388357828,1759119040097,-480.0,0.00027397,7]
[388357829,1759119040107,-480.0,0.00027397,7]
[388357830,1759119040116,-480.0,0.00027397,7]
[388357831,1759119040125,-554.87,0.00027397,7]
[388357832,1759119040134,-480.0,0.00027397,7]
[388357833,1759119040143,-480.0,0.00027397,7]
[388357834,1759119040153,-480.0,0.00027397,7]
[388357835,1759119040162,-480.0,0.00027397,7]
[388357836,1759119040171,-480.0,0.00027397,7]
[388357837,1759119040181,-583.17,0.00027397,7]
[388357838,1759119040191,-480.0,0.00027397,7]
[388357839,1759119040200,-604.50982546,0.00027397,7]
[388357840,1759119040209,-480.0,0.00027397,7]
[388357841,1759119040219,-941.78,0.00027397,7]
[388357842,1759119040228,-791.33,0.00027397,7]
[388357843,1759119040237,-480.0,0.00027397,7]
[388357844,1759119040247,-647.18,0.00027397,7]
[388357845,1759119040256,-480.0,0.00027397,7]
[388357846,1759119040266,-813.82,0.00027397,7]
[388357847,1759119040275,-480.0,0.00027397,7]
[388357848,1759119040284,-1070.2,0.00027397,7]
[388357849,1759119040293,-480.0,0.00027397,7]
[388357850,1759119040303,-890.27,0.00027397,7]
[388357851,1759119040312,-480.0,0.00027397,7]
[388357852,1759119040321,-480.0,0.00027397,7]
[388357853,1759119040330,-480.0,0.00027397,7]
[388357854,1759119040340,-762.86,0.00027397,7]
[388357855,1759119040350,-1535.45,0.00027397,7]
[388357856,1759119040359,-480.0,0.00027397,7]
[388357857,1759119040368,-480.0,0.00027397,7]
[388357858,1759119040380,-480.0,0.00027397,7]
[388357859,1759119040389,-480.0,0.00027397,7]
[388357860,1759119040399,-480.0,0.00027397,7]
[388357861,1759119040408,-480.0,0.00027397,7]
[388357862,1759119040417,-762.99,0.00027397,7]
[388357863,1759119040426,-480.0,0.00027397,7]
[388357864,1759119040435,-480.0,0.00027397,7]
[388357865,1759119040445,-480.0,0.00027397,7]
[388357866,1759119040455,-919.26,0.00027397,7]
[388357867,1759119040463,-202.43,0.00027397,7]
[388357868,1759119040473,-480.0,0.00027397,7]
[388357869,1759119040482,-616.35,0.00027397,7]
[388357870,1759119040491,-480.0,0.00027397,7]
[388357871,1759119040500,-480.0,0.00027397,7]
[388357872,1759119040509,-500.61,0.00027397,7]
[388357873,1759119040518,-480.0,0.00027397,7]
[388357874,1759119040527,-496.55,0.00027397,7]
[388357875,1759119040536,-714.92,0.00027397,7]
[388357876,1759119040545,-480.0,0.00027397,7]
[388357877,1759119040554,-480.0,0.00027397,7]
[388357878,1759119040563,-520.95,0.00027397,7]
[388357879,1759119040572,-480.0,0.00027397,7]
[388357880,1759119040583,-480.0,0.00027397,7]
[388357881,1759119040595,-2226.25,0.00027397,7]
[388357882,1759119040605,-480.0,0.00027397,7]
[388357883,1759119040614,-480.0,0.00027397,7]
[388357884,1759119040623,-891.7,0.00027397,7]
[388357885,1759119040632,-480.0,0.00027397,7]
[388357886,1759119040642,-932.89,0.00027397,7]
[388357887,1759119040651,-819.15,0.00027397,7]
[388357888,1759119040660,-749.37,0.00027397,7]
[388357889,1759119040669,-480.0,0.00027397,7]
[388357890,1759119040678,-726.25,0.00027397,7]
[388357891,1759119040687,-1499.56,0.00027397,7]
[388357892,1759119040697,-480.0,0.00027397,7]
[388357893,1759119040706,-480.0,0.00027397,7]
[388357894,1759119040716,-1383.3523985,0.00027397,7]
[388358016,1759120050450,121944.37437683,0.00033772,120]
[388358061,1759120232216,-180.89583374,0.00025867,2]
[388358062,1759120232226,-127.20346625,0.00027197,2]
[388358063,1759120232269,-647.93439265,0.00027197,2]
[388358064,1759120232278,-194.29170261,0.00027197,2]
[388358065,1759120232286,-218.1093558,0.00027197,2]
[388358066,1759120232295,-208.78520815,0.00027281,2]
[388358067,1759120232304,-862.0,0.00027294,2]
[388358068,1759120232313,-300.0,0.00027295,2]
[388358069,1759120232323,-300.0,0.00027295,2]
[388358070,1759120232332,-500.0,0.00027296,2]
[388358071,1759120232341,-500.0,0.00027296,2]
[388358072,1759120232351,-500.0,0.00027296,2]
[388358074,1759120232360,-500.0,0.00027296,2]
[388358076,1759120232369,-624.96775554,0.00027296,2]
[388358078,1759120232378,-500.0,0.00027296,2]
[388358080,1759120232389,-500.0,0.00027296,2]
[388358082,1759120232398,-500.0,0.00027296,2]
[388358084,1759120232407,-500.0,0.00027296,2]
[388358086,1759120232416,-500.0,0.00027296,2]
[388358088,1759120232426,-500.0,0.00027296,2]
[388358089,1759120232436,-155.0,0.00027296,2]
[388358090,1759120232445,-500.0,0.00027296,2]
[388358091,1759120232455,-225.49614933,0.00027296,2]
[388358092,1759120232464,-500.0,0.00027296,2]
[388358093,1759120232474,-422.56624031,0.00027296,2]
[388358094,1759120232483,-500.0,0.00027296,2]
[388358095,1759120232492,-500.0,0.00027296,2]
[388358096,1759120232502,-1000.0,0.00027296,2]
[388358097,1759120232511,-5719.19445031,0.00027297,2]
[388358098,1759120232523,-3688.09614151,0.00027297,2]
[388358392,1759120238193,-671.98342468,0.00027197,2]
[388358393,1759120238203,-612.37003484,0.00027297,2]
[388358394,1759120238213,-1701.20654048,0.00027297,2]
[388358473,1759120246321,-256.34544617,0.00027297,2]
[388358479,1759120301424,168.0,0.00025007,2]
[388358494,1759120558323,16971.88488623,0.00033773,60]
[388358522,1759120950907,500.0,0.00033774,120]
[388358546,1759121172286,200.0,0.00033775,120]
[388358584,1759121432405,-168.0,0.00025324,2]
[388358585,1759121432416,-168.0,0.0002543,2]
[388358586,1759121432427,-168.0,0.00026033,2]
[388358587,1759121432438,-168.0,0.00026787,2]
[388358588,1759121432448,-1905.80198876,0.00027141,2]
[388358589,1759121432459,-168.0,0.00027144,2]
[388358590,1759121432469,-300.0,0.0002718,2]
[388358591,1759121432479,-1200.0,0.0002718,2]
[388358592,1759121432488,-250.0,0.00027181,2]
[388358593,1759121432498,-250.0,0.00027181,2]
[388358594,1759121432508,-250.0,0.00027181,2]
[388358595,1759121432518,-250.0,0.00027181,2]
[388358597,1759121432528,-250.0,0.00027181,2]
[388358599,1759121432537,-250.0,0.00027181,2]
[388358602,1759121432547,-250.0,0.00027181,2]
[388358604,1759121432557,-250.0,0.00027181,2]
[388358606,1759121432566,-157.78689766,0.00027184,2]
[388358608,1759121432576,-1105.96138348,0.00027186,2]
[388358609,1759121432585,-500.0,0.00027186,2]
[388358610,1759121432594,-620.25405756,0.00027186,2]
[388358611,1759121432603,-191.72179437,0.00027186,2]
[388358612,1759121432614,-500.0,0.00027186,2]
[388358613,1759121432623,-326.92452693,0.00027186,2]
[388358614,1759121432631,-500.0,0.00027186,2]
[388358615,1759121432641,-500.0,0.00027186,2]
[388358616,1759121432650,-501.39529453,0.00027186,2]
[388358617,1759121432660,-500.0,0.00027186,2]
[388358618,1759121432669,-13998.9786829,0.00027187,2]
[388358619,1759121432679,-192.60691371,0.00027196,2]
[388358620,1759121432688,-500.0,0.00027196,2]
[388358621,1759121432698,-500.0,0.00027196,2]
[388358622,1759121432707,-500.0,0.00027196,2]
[388358623,1759121432717,-537.47742888,0.00027196,2]
[388358624,1759121432731,-500.0,0.00027196,2]
[388358625,1759121432740,-306.18501742,0.00027197,2]
[388358626,1759121432749,-33786.08054643,0.00027197,2]
[388358627,1759121432762,-399.70554934,0.00027197,2]
[388358628,1759121432782,-2757.32661957,0.00027197,2]
[388358629,1759121432793,-13125.05015387,0.00027197,2]
[388358630,1759121432804,-116122.73076746,0.00027197,2]
[388358631,1759121432822,-443.5621039,0.00027197,2]
[388358814,1759121443596,-252.28370486,0.00027196,2]
[388359032,1759121446601,-8195.84342231,0.00027196,2]
[388359034,1759121446611,-5156.55658019,0.00027197,2]
[388360100,1759121470809,200.0,0.00033775,120]
[388360174,1759122608402,151.0,0.00028767,120]
[388360177,1759122632652,-157.83828369,0.00026783,2]
[388360178,1759122632662,-157.78689764,0.000268,2]
[388360179,1759122632672,-1270.53465916,0.000268,2]
[388360180,1759122632681,-1200.0,0.00026883,2]
[388360181,1759122632691,-300.0,0.00026883,2]
[388360182,1759122632701,-1200.0,0.00026883,2]
[388360184,1759122632710,-1000.0,0.00026884,2]
[388360185,1759122632720,-537.7399031,0.00026884,2]
[388360186,1759122632730,-1000.0,0.00026884,2]
[388360187,1759122632739,-1000.0,0.00026884,2]
[388360188,1759122632748,-250.0,0.00026884,2]
[388360189,1759122632758,-250.0,0.00026884,2]
[388360190,1759122632767,-250.0,0.00026884,2]
[388360191,1759122632776,-250.0,0.00026884,2]
[388360192,1759122632786,-9099.33614387,0.0002689,2]
[388360193,1759122632795,-500.0,0.00026897,2]
[388360194,1759122632804,-500.0,0.00026897,2]
[388360195,1759122632813,-500.0,0.00026897,2]
[388360196,1759122632822,-357.12998002,0.00026897,2]
[388360197,1759122632832,-500.0,0.00026897,2]
[388360198,1759122632841,-500.0,0.00026897,2]
[388360199,1759122632850,-500.0,0.00026897,2]
[388360200,1759122632859,-500.0,0.00026897,2]
[388360201,1759122632868,-500.0,0.00026897,2]
[388360202,1759122632878,-500.0,0.00026897,2]
[388360203,1759122632887,-500.0,0.00026899,2]
[388360204,1759122632896,-500.0,0.00026899,2]
[388360205,1759122632905,-500.0,0.00026899,2]
[388360206,1759122632914,-276.23420021,0.00026899,2]
[388360207,1759122632924,-153.09250871,0.000269,2]
[388360208,1759122632933,-11401.44907995,0.000269,2]
[388360246,1759122638519,-358598.55092005,0.000269,2]
[388360247,1759122638530,-599.833984,0.000269,7]
[388360248,1759122638539,-599.833984,0.000269,7]
[388360249,1759122638548,-599.833984,0.000269,7]
[388360250,1759122638558,-599.833984,0.000269,7]
[388360251,1759122638568,-151.0,0.000269,7]
[388360252,1759122638577,-151.0,0.000269,7]
[388360253,1759122638586,-157.78689764,0.000269,2]
[388360254,1759122638595,-285.185949,0.000269,7]
[388360255,1759122638605,-4232.560743,0.000269,7]
[388360256,1759122638615,-4232.560743,0.000269,7]
[388360257,1759122638624,-4232.560743,0.000269,7]
[388360258,1759122638634,-151.0,0.000269,7]
[388360259,1759122638644,-4232.560743,0.000269,7]
[388360260,1759122638653,-151.0,0.000269,7]
[388360261,1759122638663,-151.0,0.000269,7]
[388360262,1759122638674,-151.0,0.000269,7]
[388360263,1759122638683,-151.0,0.000269,7]
[388360264,1759122638693,-151.0,0.000269,7]
[388360265,1759122638703,-151.0,0.000269,7]
[388360266,1759122638713,-151.0,0.000269,7]
[388360267,1759122638722,-151.0,0.000269,7]
[388360268,1759122638732,-151.0,0.000269,7]
[388360269,1759122638742,-151.0,0.000269,7]
[388360270,1759122638752,-189.975523,0.000269,7]
[388360271,1759122638761,-500.0,0.000269,2]
[388360272,1759122638771,-151.0,0.000269,7]
[388360273,1759122638780,-151.0,0.000269,7]
[388360274,1759122638790,-313.571785,0.000269,7]
[388360275,1759122638799,-313.571785,0.000269,7]
[388360276,1759122638808,-313.571785,0.000269,7]
[388360277,1759122638817,-313.571785,0.000269,7]
[388360278,1759122638827,-152.028106,0.000269,7]
[388360279,1759122638836,-217.620255,0.000269,7]
[388360280,1759122638845,-217.620255,0.000269,7]
[388360281,1759122638855,-151.0,0.000269,7]
[388360282,1759122638864,-217.620255,0.000269,7]
[388360283,1759122638873,-217.620255,0.000269,7]
[388360284,1759122638883,-160.0,0.00026972,5]
[388360285,1759122638892,-1299.90516341,0.0002698,2]
[388360286,1759122638901,-960.0,0.00026986,10]
[388360287,1759122638911,-188.939603,0.0002699,7]
[388360288,1759122638920,-188.939603,0.0002699,7]
[388360289,1759122638929,-151.0,0.0002699,7]
[388360290,1759122638938,-188.939603,0.0002699,7]
[388360291,1759122638948,-188.939603,0.0002699,7]
[388360292,1759122638957,-151.0,0.0002699,7]
[388360293,1759122638967,-151.0,0.0002699,7]
[388360294,1759122638977,-151.0,0.0002699,7]
[388360295,1759122638987,-151.0,0.0002699,7]
[388360296,1759122638996,-151.0,0.0002699,7]
[388360297,1759122639007,-151.0,0.0002699,7]
[388360298,1759122639017,-151.0,0.0002699,7]
[388360299,1759122639026,-151.0,0.0002699,7]
[388360300,1759122639036,-151.0,0.0002699,7]
[388360301,1759122639046,-151.0,0.0002699,7]
[388360302,1759122639055,-151.0,0.0002699,7]
[388360303,1759122639065,-151.0,0.0002699,7]
[388360304,1759122639075,-151.0,0.0002699,7]
[388360305,1759122639085,-151.0,0.0002699,7]
[388360306,1759122639095,-151.0,0.0002699,7]
[388360307,1759122639106,-151.0,0.0002699,7]
[388360308,1759122639116,-151.0,0.0002699,7]
[388360309,1759122639126,-151.0,0.0002699,7]
[388360310,1759122639136,-151.0,0.0002699,7]
[388360311,1759122639146,-151.0,0.0002699,7]
[388360312,1759122639156,-151.0,0.0002699,7]
[388360313,1759122639166,-151.0,0.0002699,7]
[388360314,1759122639177,-151.0,0.0002699,7]
[388360315,1759122639188,-151.0,0.0002699,7]
[388360316,1759122639198,-151.0,0.0002699,7]
[388360317,1759122639208,-151.0,0.0002699,7]
[388360318,1759122639218,-151.0,0.0002699,7]
[388360319,1759122639229,-151.0,0.0002699,7]
[388360320,1759122639239,-151.0,0.0002699,7]
[388360321,1759122639249,-151.0,0.0002699,7]
[388360322,1759122639259,-599.833984,0.0002699,7]
[388360323,1759122639268,-599.833984,0.0002699,7]
[388360324,1759122639278,-599.833984,0.0002699,7]
[388360325,1759122639287,-599.833984,0.0002699,7]
[388360326,1759122639297,-599.833984,0.0002699,7]
[388360327,1759122639306,-599.833984,0.0002699,7]
[388360328,1759122639315,-599.833984,0.0002699,7]
[388360329,1759122639325,-599.833984,0.0002699,7]
[388360330,1759122639335,-151.0,0.0002699,7]
[388360331,1759122639344,-151.0,0.0002699,7]
[388360332,1759122639354,-151.0,0.0002699,7]
[388360333,1759122639364,-6499.52581705,0.0002699,2]
[388360334,1759122639374,-4232.560743,0.0002699,7]
[388360335,1759122639383,-4232.560743,0.0002699,7]
[388360336,1759122639394,-4232.560743,0.0002699,7]
[388360337,1759122639403,-4232.560743,0.0002699,7]
[388360338,1759122639413,-4232.560743,0.0002699,7]
[388360339,1759122639422,-4232.560743,0.0002699,7]
[388360340,1759122639431,-151.0,0.0002699,7]
[388360341,1759122639441,-151.0,0.0002699,7]
[388360342,1759122639450,-4232.560743,0.0002699,7]
[388360343,1759122639460,-4232.560743,0.0002699,7]
[388360344,1759122639470,-201.881643,0.0002699,7]
[388360345,1759122639484,-151.0,0.0002699,7]
[388360346,1759122639494,-151.0,0.0002699,7]
[388360347,1759122639504,-151.0,0.0002699,7]
[388360348,1759122639513,-288.866744,0.0002699,7]
[388360349,1759122639522,-151.0,0.0002699,7]
[388360350,1759122639531,-151.0,0.0002699,7]
[388360351,1759122639540,-188.686881,0.0002699,7]
[388360352,1759122639550,-151.0,0.0002699,7]
[388360353,1759122639560,-151.0,0.0002699,7]
[388360354,1759122639569,-151.0,0.0002699,7]
[388360355,1759122639579,-151.0,0.0002699,7]
[388360356,1759122639589,-151.0,0.0002699,7]
[388360357,1759122639599,-151.0,0.0002699,7]
[388360358,1759122639608,-153.62719,0.0002699,7]
[388360359,1759122639617,-151.0,0.0002699,7]
[388360360,1759122639627,-152.289181,0.0002699,7]
[388360361,1759122639636,-313.571785,0.0002699,7]
[388360362,1759122639645,-313.571785,0.0002699,7]
[388360363,1759122639655,-313.571785,0.0002699,7]
[388360364,1759122639665,-313.571785,0.0002699,7]
[388360365,1759122639674,-313.571785,0.0002699,7]
[388360366,1759122639683,-313.571785,0.0002699,7]
[388360367,1759122639692,-313.571785,0.0002699,7]
[388360368,1759122639702,-313.571785,0.0002699,7]
[388360369,1759122639711,-432.0,0.0002699,2]
[388360370,1759122639721,-151.0,0.0002699,2]
[388360371,1759122639732,-217.620255,0.0002699,7]
[388360372,1759122639741,-217.620255,0.0002699,7]
[388360373,1759122639751,-217.620255,0.0002699,7]
[388360374,1759122639761,-217.620255,0.0002699,7]
[388360375,1759122639771,-217.620255,0.0002699,7]
[388360376,1759122639780,-217.620255,0.0002699,7]
[388360377,1759122639789,-217.620255,0.0002699,7]
[388360378,1759122639798,-217.620255,0.0002699,7]
[388360379,1759122639808,-172720.7,0.00027,2]
[388360380,1759122639817,-4940.02,0.00027,2]
[388360381,1759122639827,-188.939603,0.00027,7]
[388360382,1759122639836,-188.939603,0.00027,7]
[388360383,1759122639845,-188.939603,0.00027,7]
[388360384,1759122639855,-188.939603,0.00027,7]
[388360385,1759122639864,-151.0,0.00027,7]
[388360386,1759122639873,-151.0,0.00027,7]
[388360387,1759122639883,-244.403008,0.00027,7]
[388360388,1759122639892,-151.0,0.00027,7]
[388360389,1759122639901,-151.0,0.00027,7]
[388360390,1759122639911,-151.0,0.00027,7]
[388360391,1759122639920,-151.0,0.00027,7]
[388360392,1759122639929,-151.0,0.00027,7]
[388360393,1759122639938,-151.0,0.00027,7]
[388360394,1759122639947,-151.0,0.00027,7]